fUSD/lending_fUSD_20250609
["ID","MTS","AMOUNT","RATE_DAILY","PERIOD"]
[365093269,1749462694203,-480.0,0.00024219,2]
[365093270,1749462694213,-621.8177126,0.00024219,2]
[365093271,1749462694222,-623.62,0.00024219,2]
[365093272,1749462694232,-285.58801296,0.00024219,2]
[365093273,1749462694242,-480.0,0.00024219,2]
[365093274,1749462694252,-480.0,0.00024219,2]
[365093275,1749462694262,-588.66,0.00024219,2]
[365093276,1749462694271,-480.0,0.00024219,2]
[365093277,1749462694281,-540.8,0.00024219,2]
[365093278,1749462694292,-659.73,0.00024219,2]
[365093279,1749462694301,-480.0,0.00024219,2]
[365093280,1749462694311,-480.0,0.00024219,2]
[365093281,1749462694320,-816.95,0.00024219,2]
[365093282,1749462694330,-655.61,0.00024219,2]
[365093283,1749462694340,-480.0,0.00024219,2]
[365093284,1749462694349,-601.69,0.00024219,2]
[365093285,1749462694359,-351.45717447,0.00024219,2]
[365093286,1749462694369,-764.59,0.00024219,2]
[365093287,1749462694378,-491.29,0.00024219,2]
[365093288,1749462694388,-620.12,0.00024219,2]
[365093289,1749462694397,-565.25696245,0.00024219,2]
[365093290,1749462694406,-1664.0,0.00024219,2]
[365093291,1749462694416,-876.61,0.00024219,2]
[365093292,1749462694426,-888.29,0.00024219,2]
[365093293,1749462694435,-480.0,0.00024219,2]
[365093294,1749462694445,-480.0,0.00024219,2]
[365093295,1749462694454,-480.0,0.00024219,2]
[365093296,1749462694464,-931.85,0.00024219,2]
[365093297,1749462694473,-684.56,0.00024219,2]
[365093298,1749462694483,-480.0,0.00024219,2]
[365093299,1749462694493,-480.0,0.00024219,2]
[365093300,1749462694503,-572.64674427,0.00024219,2]
[365093301,1749462694512,-480.0,0.00024219,2]
[365093302,1749462694521,-14348.57,0.00024219,2]
[365093303,1749462694531,-1514.28,0.00024219,2]
[365093304,1749462694541,-480.0,0.00024219,2]
[365093305,1749462694551,-480.0,0.00024219,2]
[365093306,1749462694560,-1188.61,0.00024219,2]
[365093307,1749462694570,-687.61,0.00024219,2]
[365093308,1749462694579,-480.0,0.00024219,2]
[365093309,1749462694588,-204.15758093,0.00024219,2]
[365093310,1749462694597,-10581.38,0.00024219,2]
[365093311,1749462694607,-574.55,0.00024219,2]
[365093312,1749462694617,-596.16,0.00024219,2]
[365093313,1749462694626,-493.56,0.00024219,2]
[365093314,1749462694635,-480.0,0.00024219,2]
[365093315,1749462694645,-529.71,0.00024219,2]
[365093316,1749462694656,-576.66,0.00024219,2]
[365093317,1749462694666,-506.17584741,0.00024219,2]
[365093318,1749462694675,-619.44,0.00024219,2]
[365093319,1749462694685,-8574.09,0.00024219,2]
[365093320,1749462694694,-480.0,0.00024219,2]
[365093321,1749462694703,-480.0,0.00024219,2]
[365093322,1749462694712,-1513.29,0.00024219,2]
[365093323,1749462694722,-480.0,0.00024219,2]
[365093324,1749462694731,-552.51,0.00024219,2]
[365093325,1749462694741,-622.75,0.00024219,2]
[365093326,1749462694750,-480.0,0.00024219,2]
[365093327,1749462694760,-346.28,0.000243,14]
[365093328,1749462694770,-480.0,0.00024383,2]
[365093329,1749462694779,-1281.25,0.00024383,2]
[365093330,1749462694789,-480.0,0.00024383,2]
[365093331,1749462694799,-594.6037216,0.00024383,2]
[365093332,1749462694808,-480.0,0.00024383,2]
[365093333,1749462694817,-294.21327772,0.00024383,2]
[365093334,1749462694827,-632.38,0.00024383,2]
[365093335,1749462694837,-181.16267459,0.00024383,2]
[365093336,1749462694848,-621.28,0.00024383,2]
[365093337,1749462694858,-608.47,0.00024383,2]
[365093338,1749462694868,-480.0,0.00024383,2]
[365093339,1749462694878,-480.0,0.00024383,2]
[365093340,1749462694888,-207.31242556,0.00024383,2]
[365093341,1749462694898,-480.0,0.00024383,2]
[365093342,1749462694907,-480.0,0.00024383,2]
[365093343,1749462694917,-480.0,0.00024383,2]
[365093344,1749462694926,-930.22,0.00024383,2]
[365093345,1749462694935,-772.31,0.00024383,2]
[365093346,1749462694945,-480.0,0.00024383,2]
[365093347,1749462694955,-720.88,0.00024383,2]
[365093348,1749462694964,-480.0,0.00024383,2]
[365093349,1749462694974,-505.43,0.00024383,2]
[365093350,1749462694983,-480.0,0.00024383,2]
[365093351,1749462694992,-934.6,0.00024383,2]
[365093352,1749462695002,-199.18499679,0.00024383,2]
[365093353,1749462695012,-580.81,0.00024383,2]
[365093354,1749462695022,-520.2,0.00024383,2]
[365093355,1749462695032,-480.0,0.00024383,2]
[365093356,1749462695042,-504.4276274,0.00024383,2]
[365093357,1749462695051,-490.09,0.00024383,2]
[365093358,1749462695061,-480.0,0.00024383,2]
[365093359,1749462695070,-480.0,0.00024383,2]
[365093360,1749462695079,-480.0,0.00024383,2]
[365093361,1749462695089,-512.62,0.00024383,2]
[365093362,1749462695099,-678.5,0.00024383,2]
[365093363,1749462695109,-783.56,0.00024383,2]
[365093364,1749462695119,-480.0,0.00024383,2]
[365093365,1749462695130,-480.0,0.00024383,2]
[365093366,1749462695139,-480.0,0.00024383,2]
[365093367,1749462695149,-480.0,0.00024383,2]
[365093368,1749462695159,-678.44,0.00024383,2]
[365093369,1749462695169,-480.0,0.00024383,2]
[365093370,1749462695179,-480.0,0.00024383,2]
[365093371,1749462695189,-424.92423163,0.00024383,2]
[365093372,1749462695199,-480.0,0.00024383,2]
[365093373,1749462695210,-480.0,0.00024383,2]
[365093374,1749462695220,-587.17521137,0.00024383,2]
[365093375,1749462695231,-480.0,0.00024383,2]
[365093376,1749462695241,-480.0,0.00024383,2]
[365093377,1749462695251,-480.0,0.00024383,2]
[365093378,1749462695262,-480.0,0.00024383,2]
[365093379,1749462695272,-603.01,0.00024383,2]
[365093380,1749462695283,-480.0,0.00024383,2]
[365093381,1749462695293,-848.5,0.00024383,2]
[365093382,1749462695303,-480.0,0.00024383,2]
[365093383,1749462695313,-480.0,0.00024383,2]
[365093384,1749462695323,-480.0,0.00024383,2]
[365093385,1749462695334,-480.0,0.00024383,2]
[365093386,1749462695344,-480.0,0.00024383,2]
[365093387,1749462695354,-480.0,0.00024383,2]
[365093388,1749462695364,-674.21,0.00024383,2]
[365093389,1749462695374,-506.1,0.00024383,2]
[365093390,1749462695384,-605.88,0.00024383,2]
[365093391,1749462695394,-480.0,0.00024383,2]
[365093392,1749462695403,-623.62,0.00024383,2]
[365093393,1749462695414,-480.0,0.00024383,2]
[365093394,1749462695424,-480.0,0.00024383,2]
[365093395,1749462695435,-588.66,0.00024383,2]
[365093396,1749462695446,-480.0,0.00024383,2]
[365093397,1749462695456,-540.8,0.00024383,2]
[365093398,1749462695466,-659.73,0.00024383,2]
[365093399,1749462695476,-480.0,0.00024383,2]
[365093400,1749462695486,-480.0,0.00024383,2]
[365093401,1749462695654,-816.95,0.00024383,2]
[365093402,1749462695665,-655.61,0.00024383,2]
[365093403,1749462695675,-419.44476992,0.00024383,2]
[365093404,1749462695684,-601.69,0.00024383,2]
[365093405,1749462695694,-764.59,0.00024383,2]
[365093406,1749462695704,-491.29,0.00024383,2]
[365093407,1749462695717,-620.12,0.00024383,2]
[365093408,1749462695727,-1664.0,0.00024383,2]
[365093409,1749462695737,-876.61,0.00024383,2]
[365093410,1749462695747,-888.29,0.00024383,2]
[365093411,1749462695756,-413.56383032,0.00024383,2]
[365093412,1749462695766,-480.0,0.00024383,2]
[365093413,1749462695778,-480.0,0.00024383,2]
[365093414,1749462695788,-931.85,0.00024383,2]
[365093415,1749462695798,-684.56,0.00024383,2]
[365093416,1749462695808,-480.0,0.00024383,2]
[365093417,1749462695819,-480.0,0.00024383,2]
[365093418,1749462695829,-480.0,0.00024383,2]
[365093419,1749462695838,-14348.57,0.00024383,2]
[365093420,1749462695851,-1514.28,0.00024383,2]
[365093421,1749462695862,-480.0,0.00024383,2]
[365093422,1749462695873,-480.0,0.00024383,2]
[365093423,1749462695883,-1188.61,0.00024383,2]
[365093424,1749462695893,-687.61,0.00024383,2]
[365093425,1749462695904,-480.0,0.00024383,2]
[365093426,1749462695915,-10581.38,0.00024383,2]
[365093427,1749462695926,-574.55,0.00024383,2]
[365093428,1749462695936,-596.16,0.00024383,2]
[365093429,1749462695946,-493.56,0.00024383,2]
[365093430,1749462695956,-404.66509875,0.00024383,2]
[365093431,1749462695966,-529.71,0.00024383,2]
[365093432,1749462695975,-576.66,0.00024383,2]
[365093433,1749462695985,-619.44,0.00024383,2]
[365093434,1749462695995,-8574.09,0.00024383,2]
[365093435,1749462696004,-480.0,0.00024383,2]
[365093436,1749462696014,-480.0,0.00024383,2]
[365093437,1749462696025,-1513.29,0.00024383,2]
[365093438,1749462696035,-480.0,0.00024383,2]
[365093439,1749462696046,-552.51,0.00024383,2]
[365093440,1749462696055,-622.75,0.00024383,2]
[365093441,1749462696066,-480.0,0.00024383,2]
[365093442,1749462696076,-300.0,0.00024384,2]
[365093443,1749462696086,-1000.0,0.00024441,2]
[365093444,1749462696095,-150.0,0.00024471,120]
[365093445,1749462696105,-1000.0,0.000245,2]
[365093446,1749462696115,-2110.0,0.000245,2]
[365093447,1749462696124,-480.0,0.00024547,2]
[365093448,1749462696135,-1281.25,0.00024547,2]
[365093449,1749462696144,-480.0,0.00024547,2]
[365093450,1749462696155,-552.58825486,0.00024547,2]
[365093451,1749462696165,-632.38,0.00024547,2]
[365093452,1749462696174,-621.28,0.00024547,2]
[365093453,1749462696184,-608.47,0.00024547,2]
[365093454,1749462696194,-569.32738613,0.00024547,2]
[365093455,1749462696204,-480.0,0.00024547,2]
[365093456,1749462696214,-480.0,0.00024547,2]
[365093457,1749462696224,-480.0,0.00024547,2]
[365093458,1749462696235,-480.0,0.00024547,2]
[365093459,1749462696245,-930.22,0.00024547,2]
[365093460,1749462696255,-772.31,0.00024547,2]
[365093461,1749462696265,-480.0,0.00024547,2]
[365093462,1749462696277,-720.88,0.00024547,2]
[365093463,1749462696287,-480.0,0.00024547,2]
[365093464,1749462696298,-505.43,0.00024547,2]
[365093465,1749462696308,-480.0,0.00024547,2]
[365093466,1749462696318,-934.6,0.00024547,2]
[365093467,1749462696328,-580.81,0.00024547,2]
[365093468,1749462696338,-520.2,0.00024547,2]
[365093469,1749462696348,-480.0,0.00024547,2]
[365093470,1749462696358,-490.09,0.00024547,2]
[365093471,1749462696368,-480.0,0.00024547,2]
[365093472,1749462696377,-480.0,0.00024547,2]
[365093473,1749462696388,-480.0,0.00024547,2]
[365093474,1749462696398,-512.62,0.00024547,2]
[365093475,1749462696408,-678.5,0.00024547,2]
[365093476,1749462696417,-783.56,0.00024547,2]
[365093477,1749462696427,-480.0,0.00024547,2]
[365093478,1749462696437,-480.0,0.00024547,2]
[365093479,1749462696447,-480.0,0.00024547,2]
[365093480,1749462696457,-480.0,0.00024547,2]
[365093481,1749462696468,-678.44,0.00024547,2]
[365093482,1749462696478,-480.0,0.00024547,2]
[365093483,1749462696488,-480.0,0.00024547,2]
[365093484,1749462696498,-480.0,0.00024547,2]
[365093485,1749462696508,-480.0,0.00024547,2]
[365093486,1749462696518,-553.33072062,0.00024547,2]
[365093487,1749462696530,-480.0,0.00024547,2]
[365093488,1749462696540,-480.0,0.00024547,2]
[365093489,1749462696549,-480.0,0.00024547,2]
[365093490,1749462696559,-603.01,0.00024547,2]
[365093491,1749462696569,-480.0,0.00024547,2]
[365093492,1749462696579,-848.5,0.00024547,2]
[365093493,1749462696588,-480.0,0.00024547,2]
[365093494,1749462696598,-480.0,0.00024547,2]
[365093495,1749462696608,-558.57354456,0.00024547,2]
[365093496,1749462696618,-480.0,0.00024547,2]
[365093497,1749462696628,-480.0,0.00024547,2]
[365093498,1749462696637,-480.0,0.00024547,2]
[365093499,1749462696647,-674.21,0.00024547,2]
[365093500,1749462696657,-506.1,0.00024547,2]
[365093501,1749462696666,-605.88,0.00024547,2]
[365093502,1749462696676,-480.0,0.00024547,2]
[365093503,1749462696686,-623.62,0.00024547,2]
[365093504,1749462696696,-480.0,0.00024547,2]
[365093505,1749462696706,-480.0,0.00024547,2]
[365093506,1749462696715,-588.66,0.00024547,2]
[365093507,1749462696725,-480.0,0.00024547,2]
[365093508,1749462696735,-540.8,0.00024547,2]
[365093509,1749462696745,-659.73,0.00024547,2]
[365093510,1749462696755,-480.0,0.00024547,2]
[365093511,1749462696764,-480.0,0.00024547,2]
[365093512,1749462696774,-816.95,0.00024547,2]
[365093513,1749462696783,-655.61,0.00024547,2]
[365093514,1749462696792,-601.69,0.00024547,2]
[365093515,1749462696802,-764.59,0.00024547,2]
[365093516,1749462696811,-491.29,0.00024547,2]
[365093517,1749462696821,-620.12,0.00024547,2]
[365093518,1749462696830,-1664.0,0.00024547,2]
[365093519,1749462696840,-876.61,0.00024547,2]
[365093520,1749462696852,-888.29,0.00024547,2]
[365093521,1749462696861,-480.0,0.00024547,2]
[365093522,1749462696871,-480.0,0.00024547,2]
[365093523,1749462696881,-931.85,0.00024547,2]
[365093524,1749462696890,-684.56,0.00024547,2]
[365093525,1749462696900,-480.0,0.00024547,2]
[365093526,1749462696910,-480.0,0.00024547,2]
[365093527,1749462696919,-480.0,0.00024547,2]
[365093528,1749462696928,-14348.57,0.00024547,2]
[365093529,1749462696938,-1514.28,0.00024547,2]
[365093530,1749462696948,-480.0,0.00024547,2]
[365093531,1749462696958,-1188.61,0.00024547,2]
[365093532,1749462696967,-687.61,0.00024547,2]
[365093533,1749462696977,-480.0,0.00024547,2]
[365093534,1749462696986,-480.0,0.00024547,2]
[365093535,1749462696996,-10581.38,0.00024547,2]
[365093536,1749462697006,-574.55,0.00024547,2]
[365093537,1749462697016,-596.16,0.00024547,2]
[365093538,1749462697027,-493.56,0.00024547,2]
[365093539,1749462697036,-529.71,0.00024547,2]
[365093540,1749462697046,-576.66,0.00024547,2]
[365093541,1749462697057,-619.44,0.00024547,2]
[365093542,1749462697067,-8574.09,0.00024547,2]
[365093543,1749462697076,-480.0,0.00024547,2]
[365093544,1749462697086,-480.0,0.00024547,2]
[365093545,1749462697095,-1513.29,0.00024547,2]
[365093546,1749462697105,-198.89859294,0.00024547,2]
[365093547,1749462697115,-552.51,0.00024547,2]
[365093548,1749462697125,-622.75,0.00024547,2]
[365093549,1749462697136,-480.0,0.00024547,2]
[365093550,1749462697145,-500.0,0.00024561,2]
[365093551,1749462697155,-346.28,0.000246,14]
[365093552,1749462697165,-907.666,0.00024626,2]
[365093553,1749462697175,-248.71531821,0.00024643,2]
[365093554,1749462697184,-393.06,0.00024644,2]
[365093555,1749462697194,-300.0,0.00024657,2]
[365093556,1749462697205,-300.0,0.00024657,2]
[365093557,1749462697215,-300.0,0.00024657,2]
[365093558,1749462697225,-317.00080307,0.00024657,2]
[365093559,1749462697236,-891.35,0.00024657,2]
[365093560,1749462697246,-891.35,0.00024657,2]
[365093561,1749462697256,-891.35,0.00024657,2]
[365093562,1749462697266,-891.35,0.00024657,2]
[365093563,1749462697277,-891.35,0.00024657,2]
[365093564,1749462697287,-891.35,0.00024657,2]
[365093565,1749462697296,-891.35,0.00024657,2]
[365093566,1749462697306,-891.35,0.00024657,2]
[365093567,1749462697315,-891.35,0.00024657,2]
[365093568,1749462697325,-891.35,0.00024657,2]
[365093569,1749462697335,-891.35,0.00024657,2]
[365093570,1749462697345,-891.35,0.00024657,2]
[365093571,1749462697355,-891.35,0.00024657,2]
[365093572,1749462697365,-891.35,0.00024657,2]
[365093573,1749462697375,-891.35,0.00024657,2]
[365093574,1749462697384,-891.35,0.00024657,2]
[365093575,1749462697394,-891.35,0.00024657,2]
[365093576,1749462697403,-1000.0,0.00024658,2]
[365093577,1749462697412,-1000.0,0.00024658,2]
[365093578,1749462697422,-1000.0,0.00024658,2]
[365093579,1749462697431,-1000.0,0.00024658,2]
[365093580,1749462697441,-1000.0,0.00024658,2]
[365093581,1749462697451,-1000.0,0.00024658,2]
[365093582,1749462697460,-1000.0,0.00024658,2]
[365093583,1749462697468,-1000.0,0.00024658,2]
[365093584,1749462697478,-1000.0,0.00024658,2]
[365093585,1749462697487,-1000.0,0.00024658,2]
[365093586,1749462697497,-1000.0,0.00024658,2]
[365093587,1749462697506,-1000.0,0.00024658,2]
[365093588,1749462697515,-1000.0,0.00024658,2]
[365093589,1749462697526,-1000.0,0.00024658,2]
[365093590,1749462697535,-1000.0,0.00024658,2]
[365093591,1749462697545,-1000.0,0.00024658,2]
[365093592,1749462697554,-1000.0,0.00024658,2]
[365093593,1749462697563,-1000.0,0.00024658,2]
[365093594,1749462697573,-1000.0,0.00024658,2]
[365093595,1749462697583,-1000.0,0.00024658,2]
[365093596,1749462697591,-1000.0,0.00024658,2]
[365093597,1749462697601,-1000.0,0.00024658,2]
[365093598,1749462697610,-1000.0,0.00024658,2]
[365093599,1749462697620,-1000.0,0.00024658,2]
[365093600,1749462697629,-1000.0,0.00024658,2]
[365093601,1749462697638,-1000.0,0.00024658,2]
[365093602,1749462697648,-1000.0,0.00024658,2]
[365093603,1749462697658,-1000.0,0.00024658,2]
[365093604,1749462697667,-1000.0,0.00024658,2]
[365093605,1749462697677,-1000.0,0.00024658,2]
[365093606,1749462697687,-1000.0,0.00024658,2]
[365093607,1749462697696,-1000.0,0.00024658,2]
[365093608,1749462697706,-1000.0,0.00024658,2]
[365093609,1749462697715,-1000.0,0.00024658,2]
[365093610,1749462697724,-1000.0,0.00024658,2]
[365093611,1749462697734,-1000.0,0.00024658,2]
[365093612,1749462697743,-1000.0,0.00024658,2]
[365093613,1749462697753,-1000.0,0.00024658,2]
[365093614,1749462697764,-1000.0,0.00024658,2]
[365093615,1749462697775,-1000.0,0.00024658,2]
[365093616,1749462697785,-1000.0,0.00024658,2]
[365093617,1749462697794,-1000.0,0.00024658,2]
[365093618,1749462697804,-1000.0,0.00024658,2]
[365093619,1749462697814,-1000.0,0.00024658,2]
[365093620,1749462697823,-1000.0,0.00024658,2]
[365093621,1749462697834,-1000.0,0.00024658,2]
[365093622,1749462697845,-660.03493168,0.00024658,2]
[365093623,1749462697859,-1000.0,0.00024658,2]
[365093624,1749462697869,-1000.0,0.00024658,2]
[365093625,1749462697878,-151.0,0.00024658,7]
[365093626,1749462697887,-151.0,0.00024658,7]
[365093627,1749462697898,-151.0,0.00024658,7]
[365093628,1749462697908,-151.0,0.00024658,7]
[365093629,1749462697920,-151.0,0.00024658,7]
[365093630,1749462697931,-151.0,0.00024658,7]
[365093631,1749462697942,-243.872542,0.00024658,7]
[365093632,1749462697952,-1000.0,0.00024658,2]
[365093633,1749462697961,-480.0,0.00024712,2]
[365093634,1749462697970,-1281.25,0.00024712,2]
[365093635,1749462697980,-610.72271767,0.00024712,2]
[365093636,1749462697990,-632.38,0.00024712,2]
[365093637,1749462698000,-621.28,0.00024712,2]
[365093638,1749462698011,-608.47,0.00024712,2]
[365093639,1749462698022,-480.0,0.00024712,2]
[365093640,1749462698032,-480.0,0.00024712,2]
[365093641,1749462698042,-480.0,0.00024712,2]
[365093642,1749462698052,-420.23578199,0.00024712,2]
[365093643,1749462698119,-930.22,0.00024712,2]
[365093644,1749462698129,-772.31,0.00024712,2]
[365093645,1749462698139,-480.0,0.00024712,2]
[365093646,1749462698149,-720.88,0.00024712,2]
[365093647,1749462698158,-480.0,0.00024712,2]
[365093648,1749462698168,-505.43,0.00024712,2]
[365093649,1749462698177,-336.61468601,0.00024712,2]
[365093650,1749462698186,-934.6,0.00024712,2]
[365093651,1749462698195,-580.81,0.00024712,2]
[365093652,1749462698206,-520.2,0.00024712,2]
[365093653,1749462698215,-480.0,0.00024712,2]
[365093654,1749462698225,-490.09,0.00024712,2]
[365093655,1749462698235,-480.0,0.00024712,2]
[365093656,1749462698244,-480.0,0.00024712,2]
[365093657,1749462698254,-480.0,0.00024712,2]
[365093658,1749462698263,-512.62,0.00024712,2]
[365093659,1749462698274,-678.5,0.00024712,2]
[365093660,1749462698284,-783.56,0.00024712,2]
[365093661,1749462698294,-480.0,0.00024712,2]
[365093662,1749462698303,-480.0,0.00024712,2]
[365093663,1749462698313,-480.0,0.00024712,2]
[365093664,1749462698323,-534.47589356,0.00024712,2]
[365093665,1749462698333,-678.44,0.00024712,2]
[365093666,1749462698343,-480.0,0.00024712,2]
[365093667,1749462698352,-480.0,0.00024712,2]
[365093668,1749462698362,-480.0,0.00024712,2]
[365093669,1749462698371,-480.0,0.00024712,2]
[365093670,1749462698381,-480.0,0.00024712,2]
[365093671,1749462698391,-480.0,0.00024712,2]
[365093672,1749462698400,-480.0,0.00024712,2]
[365093673,1749462698409,-603.01,0.00024712,2]
[365093674,1749462698419,-480.0,0.00024712,2]
[365093675,1749462698428,-848.5,0.00024712,2]
[365093676,1749462698438,-480.0,0.00024712,2]
[365093677,1749462698447,-480.0,0.00024712,2]
[365093678,1749462698456,-234.02551421,0.00024712,2]
[365093679,1749462698466,-593.92107298,0.00024712,2]
[365093680,1749462698475,-480.0,0.00024712,2]
[365093681,1749462698485,-674.21,0.00024712,2]
[365093682,1749462698494,-506.1,0.00024712,2]
[365093683,1749462698504,-605.88,0.00024712,2]
[365093684,1749462698514,-480.0,0.00024712,2]
[365093685,1749462698523,-623.62,0.00024712,2]
[365093686,1749462698533,-480.0,0.00024712,2]
[365093687,1749462698542,-480.0,0.00024712,2]
[365093688,1749462698551,-588.66,0.00024712,2]
[365093689,1749462698561,-480.0,0.00024712,2]
[365093690,1749462698571,-540.8,0.00024712,2]
[365093691,1749462698580,-659.73,0.00024712,2]
[365093692,1749462698589,-480.0,0.00024712,2]
[365093693,1749462698599,-480.0,0.00024712,2]
[365093694,1749462698609,-816.95,0.00024712,2]
[365093695,1749462698618,-655.61,0.00024712,2]
[365093696,1749462698628,-601.69,0.00024712,2]
[365093697,1749462698637,-764.59,0.00024712,2]
[365093698,1749462698646,-491.29,0.00024712,2]
[365093699,1749462698656,-620.12,0.00024712,2]
[365093700,1749462698666,-891.35,0.00024712,2]
[365093701,1749462698675,-1664.0,0.00024712,2]
[365093702,1749462698685,-876.61,0.00024712,2]
[365093703,1749462698694,-888.29,0.00024712,2]
[365093704,1749462698703,-480.0,0.00024712,2]
[365093705,1749462698713,-480.0,0.00024712,2]
[365093706,1749462698722,-931.85,0.00024712,2]
[365093707,1749462698732,-684.56,0.00024712,2]
[365093708,1749462698741,-480.0,0.00024712,2]
[365093709,1749462698750,-480.0,0.00024712,2]
[365093710,1749462698759,-207.32703204,0.00024712,2]
[365093711,1749462698768,-14348.57,0.00024712,2]
[365093712,1749462698779,-1514.28,0.00024712,2]
[365093713,1749462698789,-480.0,0.00024712,2]
[365093714,1749462698798,-1188.61,0.00024712,2]
[365093715,1749462698808,-687.61,0.00024712,2]
[365093716,1749462698817,-480.0,0.00024712,2]
[365093717,1749462698826,-621.09709602,0.00024712,2]
[365093718,1749462698836,-10581.38,0.00024712,2]
[365093719,1749462698847,-574.55,0.00024712,2]
[365093720,1749462698858,-596.16,0.00024712,2]
[365093721,1749462698867,-493.56,0.00024712,2]
[365093722,1749462698876,-529.71,0.00024712,2]
[365093723,1749462698885,-576.66,0.00024712,2]
[365093724,1749462698895,-619.44,0.00024712,2]
[365093725,1749462698904,-8574.09,0.00024712,2]
[365093726,1749462698914,-350.88432595,0.00024712,2]
[365093727,1749462698923,-480.0,0.00024712,2]
[365093728,1749462698932,-1513.29,0.00024712,2]
[365093729,1749462698941,-552.51,0.00024712,2]
[365093730,1749462698951,-622.75,0.00024712,2]
[365093731,1749462698960,-480.0,0.00024712,2]
[365093732,1749462698970,-346.28,0.000248,14]
[365093733,1749462698979,-607515.013904,0.000248,2]
[365093734,1749462698989,-150.0,0.00024869,120]
[365093735,1749462698998,-480.0,0.00024876,2]
[365093736,1749462699007,-1281.25,0.00024876,2]
[365093737,1749462699017,-632.38,0.00024876,2]
[365093738,1749462699028,-621.28,0.00024876,2]
[365093739,1749462699038,-608.47,0.00024876,2]
[365093740,1749462699048,-480.0,0.00024876,2]
[365093741,1749462699059,-480.0,0.00024876,2]
[365093742,1749462699069,-480.0,0.00024876,2]
[365093743,1749462699080,-930.22,0.00024876,2]
[365093744,1749462699090,-772.31,0.00024876,2]
[365093745,1749462699100,-480.0,0.00024876,2]
[365093746,1749462699111,-720.88,0.00024876,2]
[365093747,1749462699121,-480.0,0.00024876,2]
[365093748,1749462699130,-505.43,0.00024876,2]
[365093749,1749462699140,-934.6,0.00024876,2]
[365093750,1749462699151,-580.81,0.00024876,2]
[365093751,1749462699161,-520.2,0.00024876,2]
[365093752,1749462699171,-271.00346182,0.00024876,2]
[365093753,1749462699180,-480.0,0.00024876,2]
[365093754,1749462699191,-490.09,0.00024876,2]
[365093755,1749462699200,-480.0,0.00024876,2]
[365093756,1749462699210,-480.0,0.00024876,2]
[365093757,1749462699221,-512.62,0.00024876,2]
[365093758,1749462699232,-678.5,0.00024876,2]
[365093759,1749462699242,-783.56,0.00024876,2]
[365093760,1749462699252,-480.0,0.00024876,2]
[365093761,1749462699262,-480.0,0.00024876,2]
[365093762,1749462699275,-480.0,0.00024876,2]
[365093763,1749462699287,-678.44,0.00024876,2]
[365093764,1749462699297,-368.01670187,0.00024876,2]
[365093765,1749462699307,-480.0,0.00024876,2]
[365093766,1749462699316,-480.0,0.00024876,2]
[365093767,1749462699326,-480.0,0.00024876,2]
[365093768,1749462699336,-480.0,0.00024876,2]